[Event "37th Belgrade Trophy 2024"]
[Site "Belgrade"]
[Date "2024.11.26"]
[Round "4.5"]
[White "Sutormin, Danila"]
[Black "Kerner, Michael"]
[Result "1-0"]
[ECO "B12"]
[WhiteElo "2394"]
[BlackElo "2086"]
[Annotator "RC"]
[PlyCount "119"]
[EventDate "2024.11.23"]
[EventCountry "SRB"]
[SourceTitle "playchess.com"]
[Source "ChessBase"]
[SourceQuality "1"]
[TimeControl "40/5400+30:900+30"]

1. e4 {[%emt 0:05:57]} c6 {[%emt 0:01:22]} 2. d4 {[%emt 0:00:09]} d5 {[%emt 0:00:07]} 3. e5 {[%emt 0:00:48]} c5 {[%emt 0:00:07]} 4. Nf3 {[%emt 0:00:32]} Nc6 {[%emt 0:01:04]} 5. dxc5 {[%emt 0:06:03]} Bg4 {[%emt 0:00:39]} 6. c3 {[%emt 0:01:16]} e6 {[%emt 0:01:06]} 7. Be3 {[%emt 0:08:51]} Nh6 {[%emt 0:16:40]} 8. Bb5 {[%emt 0:03:43]} Qc7 {[%emt 0:06:56]} 9. Nbd2 {[%emt 0:04:44]} Nf5 {[%emt 0:03:38]} 10. Bd4 {[%emt 0:02:48]} Be7 {[%emt 0:02:31]} 11. O-O {[%emt 0:09:08]} O-O {[%emt 0:01:15]} 12. Qa4 {[%emt 0:03:27]} Bh5 {[%emt 0:11:59]} 13. Rfe1 {[%emt 0:03:44]} g5 {[%emt 0:12:42]} 14. h3 {[%emt 0:03:34]} Bg6 {[%emt 0:02:34]} 15. g4 {[%emt 0:12:37]} Nfxd4 {[%emt 0:04:20]} 16. cxd4 {[%emt 0:00:24]} f5 {[%emt 0:01:13]} 17. exf6 {[%emt 0:01:24]} Rxf6 {[%emt 0:00:16]} 18. Bxc6 {[%emt 0:04:00]} bxc6 {[%emt 0:02:49]} 19. Ne5 {[%emt 0:00:37]} Rc8 {[%emt 0:04:20]} 20. Re3 {[%emt 0:07:37]} Be8 {[%emt 0:04:36]} 21. Rae1 {[%emt 0:00:23]} Bf8 {[%emt 0:03:47]} 22. Ra3 {[%emt 0:06:06]} Rf4 {[%emt 0:03:00]} 23. Nd3 {[%emt 0:00:51]} Rf7 {[%emt 0:04:49]} 24. Rxe6 {[%emt 0:00:54]} Bg7 {[%emt 0:03:07]} 25. Ne5 {[%emt 0:05:17]} Rf4 {[%emt 0:00:29]} 26. Ndf3 {[%emt 0:01:37]} a6 {[%emt 0:05:52]} 27. Qxa6 {[%emt 0:01:45]} Bxe5 {[%emt 0:01:20]} 28. Rxe5 {[%emt 0:00:29]} Bg6 {[%emt 0:00:08]} 29. Qb6 {[%emt 0:03:18]} Qg7 {[%emt 0:00:17]} 30. Ree3 {[%emt 0:01:53]} Rcf8 {[%emt 0:00:11]} 31. Qxc6 {[%emt 0:01:13]} Be4 {[%emt 0:00:11]} 32. Qe6+ {[%emt 0:00:34]} Kh8 {[%emt 0:00:12]} 33. Kg2 {[%emt 0:00:27]} Qxd4 {[%emt 0:00:45]} 34. Kg3 {[%emt 0:00:17]} Qxb2 {[%emt 0:00:48]} 35. c6 {[%emt 0:00:56]} Qa1 {[%emt 0:00:16]} 36. Qe5+ {[%emt 0:00:27]} Qxe5 {[%emt 0:00:07]} 37. Nxe5 {[%emt 0:00:02]} Rxf2 {[%emt 0:00:21]} 38. Nf3 {[%emt 0:00:48]} Rc2 {[%emt 0:01:14]} 39. Nxg5 {[%emt 0:00:12]} Bg6 {[%emt 0:01:15]} 40. Ne6 {[%emt 0:00:38]} Rc8 {[%emt 0:00:19]} 41. Rec3 {[%emt 0:15:54]} Re2 {[%emt 0:15:23]} 42. Nf4 {[%emt 0:00:31]} Rd2 {[%emt 0:00:42]} 43. Nxg6+ {[%emt 0:00:31]} hxg6 {[%emt 0:00:02]} 44. c7 {[%emt 0:00:31]} d4 {[%emt 0:00:08]} 45. Rc4 {[%emt 0:00:22]} d3 {[%emt 0:00:22]} 46. Rb3 {[%emt 0:00:29]} Kg7 {[%emt 0:00:19]} 47. a4 {[%emt 0:00:00]} Rd1 {[%emt 0:00:00]} 48. Rd4 {[%emt 0:00:00]} d2 {[%emt 0:00:00]} 49. Rd7+ {[%emt 0:00:00]} Kf6 {[%emt 0:00:00]} 50. Rbd3 {[%emt 0:00:00]} Rg1+ {[%emt 0:00:00]} 51. Kf4 {[%emt 0:01:04]} g5+ {[%emt 0:00:00]} 52. Ke3 {[%emt 0:00:05]} d1=Q {[%emt 0:00:00]} 53. Rxd1 {[%emt 0:00:06]} Rxd1 {[%emt 0:00:00]} 54. Rxd1 {[%emt 0:00:02]} Rxc7 {[%emt 0:00:00]} 55. Ra1 {[%emt 0:00:46]} Ke5 {[%emt 0:00:00]} 56. Ra3 {[%emt 0:02:28]} Rc2 {[%emt 0:01:19]} 57. Kf3 {[%emt 0:00:28]} Kd4 {[%emt 0:00:01]} 58. a5 {[%emt 0:00:18]} Rc7 {[%emt 0:01:13]} 59. a6 {[%emt 0:00:04]} Ra7 {[%emt 0:00:03]} 60. Ra5 {[%emt 0:00:21]} 1-0

[Event "37th Belgrade Trophy 2024"]
[Site "Belgrade"]
[Date "2024.11.27"]
[Round "5.1"]
[White "Bryakin, Mikhail"]
[Black "Sutormin, Danila"]
[Result "1/2-1/2"]
[ECO "A06"]
[WhiteElo "2435"]
[BlackElo "2394"]
[Annotator "TA"]
[PlyCount "25"]
[EventDate "2024.11.23"]
[EventCountry "SRB"]
[SourceTitle "playchess.com"]
[Source "ChessBase"]
[SourceQuality "1"]
[TimeControl "40/5400+30:900+30"]

{[%evp 15,25,-26,-22,-28,5,-18,-9,-6,0,-18,0,-63]} 1. Nf3 {[%emt 0:00:04]} d5 {[%emt 0:00:10]} 2. b3 {[%emt 0:00:09]} Nf6 {[%emt 0:00:08]} 3. Bb2 {[%emt 0:00:08]} e6 {[%emt 0:00:09]} 4. g3 {[%emt 0:00:11]} c5 {[%emt 0:00:11]} 5. Bg2 {[%emt 0:00:16]} Be7 {[%emt 0:00:08]} 6. O-O {[%emt 0:00:12]} O-O {[%emt 0:00:09]} 7. d3 {[%emt 0:00:13]} Nc6 {[%emt 0:00:08]} 8. Nbd2 {[%emt 0:00:11]} Qc7 {[%emt 0:00:40]} 9. e4 {[%emt 0:00:51]} b5 {[%emt 0:00:22]} 10. a4 {[%emt 0:00:22] [#] Black must now prevent exd5. The position is equal.} b4 {[%emt 0:00:17]} 11. Re1 {[%emt 0:00:10]} Bb7 {[%emt 0:00:25]} 12. h4 {[%emt 0:00:21]} h6 {[%emt 0:00:42]} 13. e5 {[%emt 0:00:28] White did not feel at home in the position after the opening.   Weighted Error Value: White=0.11 (very precise) /Black=0.12 (very precise) .  Mistake:       	White=1     	---        Inaccurate:     	---       	Black=1      OK:         	White=1     	Black=1} ({White should play} 13. exd5 $11 Nxd5 14. Ne5) 1/2-1/2

[Event "37th Belgrade Trophy 2024"]
[Site "Belgrade"]
[Date "2024.11.27"]
[Round "5.2"]
[White "Stanojoski, Zvonko"]
[Black "Leftheriotis, Alexandros"]
[Result "1-0"]
[ECO "B92"]
[WhiteElo "2401"]
[BlackElo "2165"]
[Annotator "RC"]
[PlyCount "71"]
[EventDate "2024.11.23"]
[EventCountry "SRB"]
[SourceTitle "playchess.com"]
[Source "ChessBase"]
[SourceQuality "1"]
[TimeControl "40/5400+30:900+30"]

1. e4 {[%emt 0:04:58]} c5 {[%emt 0:00:22]} 2. Nf3 {[%emt 0:00:11]} d6 {[%emt 0:00:33]} 3. d4 {[%emt 0:00:12]} cxd4 {[%emt 0:00:27]} 4. Nxd4 {[%emt 0:00:05]} Nf6 {[%emt 0:00:10]} 5. Nc3 {[%emt 0:00:05]} a6 {[%emt 0:00:22]} 6. Be2 {[%emt 0:00:23]} e5 {[%emt 0:00:36]} 7. Nb3 {[%emt 0:00:06]} Be7 {[%emt 0:00:38]} 8. O-O {[%emt 0:00:15]} O-O {[%emt 0:00:49]} 9. Re1 {[%emt 0:00:49]} Be6 {[%emt 0:00:38]} 10. Bf3 {[%emt 0:00:11]} Nbd7 {[%emt 0:01:12]} 11. a4 {[%emt 0:00:44]} h5 {[%emt 0:03:14]} 12. h3 {[%emt 0:03:38]} g6 {[%emt 0:02:02]} 13. a5 {[%emt 0:01:00]} Rc8 {[%emt 0:01:32]} 14. Be3 {[%emt 0:00:50]} Nh7 {[%emt 0:02:58]} 15. Re2 {[%emt 0:04:19]} Rc6 {[%emt 0:08:28]} 16. Rd2 {[%emt 0:08:55]} Bg5 {[%emt 0:03:28]} 17. Rxd6 {[%emt 0:02:09]} Rxd6 {[%emt 0:05:37]} 18. Qxd6 {[%emt 0:00:07]} Bxe3 {[%emt 0:00:30]} 19. fxe3 {[%emt 0:00:06]} Qg5 {[%emt 0:02:21]} 20. Kf2 {[%emt 0:01:19]} Ndf6 {[%emt 0:05:07]} 21. Rh1 {[%emt 0:04:44]} h4 {[%emt 0:06:04]} 22. Ne2 {[%emt 0:00:25]} Rc8 {[%emt 0:12:26]} 23. Nc5 {[%emt 0:01:03]} Ne8 {[%emt 0:02:02]} 24. Qb6 {[%emt 0:12:17]} Bc4 {[%emt 0:02:23]} 25. Rd1 {[%emt 0:13:03]} Bxe2 {[%emt 0:22:51]} 26. Kxe2 {[%emt 0:00:14]} Rc6 {[%emt 0:00:05]} 27. Qb4 {[%emt 0:02:31]} Qe7 {[%emt 0:02:01]} 28. Nxa6 {[%emt 0:00:37]} Rxc2+ {[%emt 0:01:26]} 29. Kd3 {[%emt 0:00:20]} Qxb4 {[%emt 0:00:52]} 30. Nxb4 {[%emt 0:00:04]} Rxb2 {[%emt 0:03:11]} 31. Kc3 {[%emt 0:00:44]} Rf2 {[%emt 0:00:05]} 32. Kb3 {[%emt 0:00:47]} Ng5 {[%emt 0:01:54]} 33. Nd3 {[%emt 0:00:12]} Rxf3 {[%emt 0:00:26]} 34. gxf3 {[%emt 0:00:05]} Nxf3 {[%emt 0:00:10]} 35. Nc5 {[%emt 0:01:00]} Nf6 {[%emt 0:00:35]} 36. Nxb7 {[%emt 0:00:32]} 1-0

[Event "37th Belgrade Trophy 2024"]
[Site "Belgrade"]
[Date "2024.11.27"]
[Round "5.4"]
[White "Milicevic, Aleksa"]
[Black "Martic, Ivan"]
[Result "0-1"]
[ECO "E63"]
[WhiteElo "1982"]
[BlackElo "2261"]
[Annotator "RC"]
[PlyCount "102"]
[EventDate "2024.11.23"]
[EventCountry "SRB"]
[SourceTitle "playchess.com"]
[Source "ChessBase"]
[SourceQuality "1"]
[TimeControl "40/5400+30:900+30"]

1. d4 {[%emt 0:00:30]} Nf6 {[%emt 0:01:23]} 2. Nf3 {[%emt 0:00:09]} g6 {[%emt 0:00:07]} 3. c4 {[%emt 0:00:30]} Bg7 {[%emt 0:00:07]} 4. Nc3 {[%emt 0:01:37]} O-O {[%emt 0:00:38]} 5. g3 {[%emt 0:00:38]} d6 {[%emt 0:00:12]} 6. Bg2 {[%emt 0:00:08]} Nc6 {[%emt 0:00:15]} 7. O-O {[%emt 0:01:00]} a6 {[%emt 0:00:10]} 8. h3 {[%emt 0:05:57]} Rb8 {[%emt 0:00:18]} 9. e4 {[%emt 0:00:18]} e6 {[%emt 0:03:52]} 10. a4 {[%emt 0:04:25]} Bd7 {[%emt 0:02:57]} 11. Be3 {[%emt 0:02:50]} Ne7 {[%emt 0:01:39]} 12. a5 {[%emt 0:03:02]} Qc8 {[%emt 0:02:52]} 13. Qd2 {[%emt 0:15:55]} e5 {[%emt 0:04:27]} 14. dxe5 {[%emt 0:02:16]} dxe5 {[%emt 0:00:08]} 15. Kh2 {[%emt 0:00:04]} Nc6 {[%emt 0:06:59]} 16. Qc2 {[%emt 0:09:18]} Re8 {[%emt 0:09:32]} 17. Rfd1 {[%emt 0:00:31]} Be6 {[%emt 0:10:44]} 18. Nd5 {[%emt 0:03:04]} Nd7 {[%emt 0:01:33]} 19. Qd2 {[%emt 0:09:43]} Nf6 {[%emt 0:02:12]} 20. Qc2 {[%emt 0:01:43]} Nh5 {[%emt 0:02:36]} 21. b4 {[%emt 0:04:28]} f5 {[%emt 0:03:57]} 22. b5 {[%emt 0:05:03]} Nd8 {[%emt 0:04:53]} 23. Ba7 {[%emt 0:01:48]} Ra8 {[%emt 0:04:26]} 24. Bc5 {[%emt 0:05:14]} Bxd5 {[%emt 0:01:22]} 25. cxd5 {[%emt 0:01:29]} Nf7 {[%emt 0:03:10]} 26. Rac1 {[%emt 0:08:20]} Bh6 {[%emt 0:04:29]} 27. Rb1 {[%emt 0:01:00]} Nd6 {[%emt 0:01:28]} 28. exf5 {[%emt 0:02:03]} gxf5 {[%emt 0:01:11]} 29. Qb3 {[%emt 0:04:35]} axb5 {[%emt 0:02:04]} 30. Bxd6 {[%emt 0:00:45]} cxd6 {[%emt 0:00:05]} 31. Qxb5 {[%emt 0:01:24]} Re7 {[%emt 0:02:19]} 32. Rb4 {[%emt 0:02:21]} Qc2 {[%emt 0:04:52]} 33. Rf1 {[%emt 0:00:10]} Nf6 {[%emt 0:00:30]} 34. Nh4 {[%emt 0:00:41]} Rf8 {[%emt 0:04:41]} 35. Rb2 {[%emt 0:00:19]} Qc8 {[%emt 0:00:16]} 36. Qb6 {[%emt 0:01:25]} Ne8 {[%emt 0:01:43]} 37. Bf3 {[%emt 0:00:27]} Bg7 {[%emt 0:07:39]} 38. Bh5 {[%emt 0:01:16]} e4 {[%emt 0:00:08]} 39. Rbb1 {[%emt 0:00:21]} Be5 {[%emt 0:02:25]} 40. Rbc1 {[%emt 0:00:29]} Qd7 {[%emt 0:00:39]} 41. Ng2 {[%emt 0:17:45]} Nf6 {[%emt 0:15:57]} 42. Be2 {[%emt 0:00:17]} Rg7 {[%emt 0:01:35]} 43. Nf4 {[%emt 0:00:00]} Bxf4 {[%emt 0:00:00]} 44. gxf4 {[%emt 0:00:00]} Kh8 {[%emt 0:00:00]} 45. Rg1 {[%emt 0:00:00]} Rfg8 {[%emt 0:00:00]} 46. Bb5 {[%emt 0:00:00]} Qe7 {[%emt 0:00:00]} 47. Qd4 {[%emt 0:00:00]} Ng4+ {[%emt 0:00:00]} 48. Rxg4 {[%emt 0:00:00]} fxg4 {[%emt 0:00:00]} 49. Rg1 {[%emt 0:00:08]} h5 {[%emt 0:00:00]} 50. Ba4 {[%emt 0:00:35]} Rf8 {[%emt 0:00:00]} 51. Rg3 {[%emt 0:02:51]} Rxf4 {[%emt 0:00:00]} 0-1

[Event "37th Belgrade Trophy 2024"]
[Site "Belgrade"]
[Date "2024.11.27"]
[Round "5.5"]
[White "Divljan, Igor"]
[Black "Khaleev, Timofey D"]
[Result "1/2-1/2"]
[ECO "D00"]
[WhiteElo "2221"]
[BlackElo "1743"]
[Annotator "RC"]
[PlyCount "46"]
[EventDate "2024.11.23"]
[EventCountry "SRB"]
[SourceTitle "playchess.com"]
[Source "ChessBase"]
[SourceQuality "1"]
[TimeControl "40/5400+30:900+30"]

1. d4 {[%emt 0:03:01]} d5 {[%emt 0:00:06]} 2. Nc3 {[%emt 0:00:13]} Nf6 {[%emt 0:00:07]} 3. Bf4 {[%emt 0:00:13]} c5 {[%emt 0:00:04]} 4. e4 {[%emt 0:00:13]} Nxe4 {[%emt 0:00:07]} 5. Nxe4 {[%emt 0:00:24]} dxe4 {[%emt 0:00:06]} 6. dxc5 {[%emt 0:00:40]} Qa5+ {[%emt 0:00:05]} 7. c3 {[%emt 0:00:51]} Qxc5 {[%emt 0:00:05]} 8. Qa4+ {[%emt 0:01:42]} Nc6 {[%emt 0:00:10]} 9. Qxe4 {[%emt 0:00:19]} g6 {[%emt 0:00:18]} 10. Nf3 {[%emt 0:01:19]} Bg7 {[%emt 0:00:42]} 11. Qe3 {[%emt 0:01:11]} Qxe3+ {[%emt 0:00:46]} 12. Bxe3 {[%emt 0:02:09]} O-O {[%emt 0:02:29]} 13. Be2 {[%emt 0:02:16]} Rd8 {[%emt 0:01:13]} 14. O-O {[%emt 0:02:34]} Bf5 {[%emt 0:01:16]} 15. Rfd1 {[%emt 0:05:29]} Bc2 {[%emt 0:01:18]} 16. Rxd8+ {[%emt 0:04:30]} Rxd8 {[%emt 0:00:14]} 17. Kf1 {[%emt 0:06:43]} a6 {[%emt 0:04:43]} 18. Rc1 {[%emt 0:28:16]} Bf5 {[%emt 0:04:00]} 19. Rd1 {[%emt 0:08:18]} Rxd1+ {[%emt 0:03:48]} 20. Bxd1 {[%emt 0:00:04]} Be6 {[%emt 0:02:59]} 21. a4 {[%emt 0:04:58]} Bc4+ {[%emt 0:07:21]} 22. Ke1 {[%emt 0:00:16]} Bd5 {[%emt 0:00:39]} 23. Bb6 {[%emt 0:08:04]} e5 {[%emt 0:06:01]} 1/2-1/2

[Event "37th Belgrade Trophy 2024"]
[Site "Belgrade"]
[Date "2024.11.27"]
[Round "5.6"]
[White "Ughuzov, Ravan"]
[Black "Triantafilidis, Mihail"]
[Result "1/2-1/2"]
[ECO "B06"]
[WhiteElo "2047"]
[BlackElo "2200"]
[Annotator "RC"]
[PlyCount "99"]
[EventDate "2024.11.23"]
[EventCountry "SRB"]
[SourceTitle "playchess.com"]
[Source "ChessBase"]
[SourceQuality "1"]
[TimeControl "40/5400+30:900+30"]

1. e4 {[%emt 0:00:06]} c5 {[%emt 0:00:47]} 2. c3 {[%emt 0:00:20]} d5 {[%emt 0:00:14]} 3. exd5 {[%emt 0:00:07]} Qxd5 {[%emt 0:00:06]} 4. d4 {[%emt 0:00:09]} g6 {[%emt 0:00:10]} 5. Nf3 {[%emt 0:00:11]} Bg7 {[%emt 0:00:07]} 6. Nbd2 {[%emt 0:00:25]} cxd4 {[%emt 0:00:35]} 7. Bc4 {[%emt 0:00:10]} Qd8 {[%emt 0:03:07]} 8. Nxd4 {[%emt 0:00:16]} Nf6 {[%emt 0:00:35]} 9. N2f3 {[%emt 0:01:09]} O-O {[%emt 0:00:44]} 10. O-O {[%emt 0:00:21]} Bd7 {[%emt 0:09:08]} 11. Ne5 {[%emt 0:02:59]} Be8 {[%emt 0:07:05]} 12. Nf5 {[%emt 0:10:32]} Nbd7 {[%emt 0:00:38]} 13. Nxd7 {[%emt 0:01:01]} Bxd7 {[%emt 0:01:09]} 14. Nxg7 {[%emt 0:00:44]} Kxg7 {[%emt 0:00:02]} 15. Bf4 {[%emt 0:00:51]} Bc6 {[%emt 0:00:53]} 16. Qc1 {[%emt 0:02:05]} Kg8 {[%emt 0:11:07]} 17. Re1 {[%emt 0:05:23]} Re8 {[%emt 0:00:27]} 18. Be5 {[%emt 0:03:40]} Nd7 {[%emt 0:01:48]} 19. Bg3 {[%emt 0:03:33]} Kg7 {[%emt 0:06:40]} 20. Qf4 {[%emt 0:02:04]} f6 {[%emt 0:00:10]} 21. Rad1 {[%emt 0:02:02]} e5 {[%emt 0:00:21]} 22. Qe3 {[%emt 0:03:45]} Qb6 {[%emt 0:01:25]} 23. Qe2 {[%emt 0:00:13]} Nc5 {[%emt 0:03:32]} 24. Rd6 {[%emt 0:08:06]} Qc7 {[%emt 0:01:41]} 25. Red1 {[%emt 0:03:52]} Ne4 {[%emt 0:14:44]} 26. Rxc6 {[%emt 0:00:21]} Qxc6 {[%emt 0:00:02]} 27. Bb5 {[%emt 0:00:01]} Nxg3 {[%emt 0:00:02]} 28. hxg3 {[%emt 0:00:20]} Qe6 {[%emt 0:05:12]} 29. Bxe8 {[%emt 0:01:48]} Rxe8 {[%emt 0:00:08]} 30. Qb5 {[%emt 0:00:43]} Re7 {[%emt 0:00:18]} 31. c4 {[%emt 0:04:35]} a6 {[%emt 0:00:26]} 32. Qc5 {[%emt 0:01:34]} Rd7 {[%emt 0:03:45]} 33. Rd5 {[%emt 0:02:02]} Qf5 {[%emt 0:02:57]} 34. g4 {[%emt 0:04:39]} Qb1+ {[%emt 0:04:06]} 35. Kh2 {[%emt 0:00:05]} Rf7 {[%emt 0:00:08]} 36. Rd2 {[%emt 0:13:41]} Qe4 {[%emt 0:03:07]} 37. Qd5 {[%emt 0:03:59]} Qxg4 {[%emt 0:00:11]} 38. Kg1 {[%emt 0:00:01]} Rc7 {[%emt 0:07:07]} 39. b3 {[%emt 0:00:22]} Rf7 {[%emt 0:00:41]} 40. Kf1 {[%emt 0:01:14]} Qf5 {[%emt 0:00:09]} 41. Kg1 {[%emt 0:15:20]} Qb1+ {[%emt 0:15:22]} 42. Kh2 {[%emt 0:00:02]} Qe1 {[%emt 0:01:35]} 43. Qd8 {[%emt 0:02:18]} e4 {[%emt 0:07:36]} 44. Rd7 {[%emt 0:01:27]} Qxf2 {[%emt 0:00:24]} 45. Rxf7+ {[%emt 0:00:04]} Kxf7 {[%emt 0:00:07]} 46. Qd7+ {[%emt 0:00:01]} Kf8 {[%emt 0:00:45]} 47. Qc8+ {[%emt 0:00:17]} Kg7 {[%emt 0:01:27]} 48. Qxb7+ {[%emt 0:00:04]} Kh6 {[%emt 0:03:26]} 49. Qxe4 {[%emt 0:00:04]} f5 {[%emt 0:00:06]} 50. Qf3 {[%emt 0:01:58]} 1/2-1/2

[Event "37th Belgrade Trophy 2024"]
[Site "Belgrade"]
[Date "2024.11.27"]
[Round "5.7"]
[White "Shchekachev, Andrei"]
[Black "Dorokhina, Elizaveta"]
[Result "1-0"]
[ECO "A11"]
[WhiteElo "2448"]
[BlackElo "2064"]
[Annotator "TA"]
[PlyCount "73"]
[EventDate "2024.11.23"]
[EventCountry "SRB"]
[SourceTitle "playchess.com"]
[Source "ChessBase"]
[SourceQuality "1"]
[TimeControl "40/5400+30:900+30"]

{[%evp 11,73,0,11,0,33,-1,74,67,75,78,81,75,95,95,94,100,98,62,71,72,103,60,102,46,72,44,62,54,88,89,85,75,128,120,116,116,121,125,125,104,110,114,103,77,76,67,75,73,60,64,2129,2073,2141,2228,1883,2071,1936,1776,1647,1672,1403,1403,1246,1236]} 1. Nf3 {[%emt 0:09:43]} d5 {[%emt 0:03:17]} 2. g3 {[%emt 0:00:57]} Nf6 {[%emt 0:00:16]} 3. Bg2 {[%emt 0:00:19]} Bf5 {[%emt 0:00:30]} 4. c4 {[%emt 0:03:14]} c6 {[%emt 0:04:28]} 5. Qb3 {[%emt 0:02:46]} Qb6 {[%emt 0:02:19]} 6. cxd5 {[%emt 0:02:11]} cxd5 {[%emt 0:07:23]} 7. Nc3 {[%emt 0:02:28]} e6 {[%emt 0:01:07]} 8. O-O {[%emt 0:04:22]} Nbd7 {[%emt 0:07:02]} (8... Qxb3 $11 9. axb3 Nc6) 9. Qxb6 $16 {[%emt 0:15:45] White is better.} axb6 {[%emt 0:01:08]} 10. Nd4 {[%emt 0:00:06][%cal Bf3d4,Bd4b5,Bb5d6][%mdl 32]} Bg6 {[%emt 0:00:35]} 11. Ndb5 {[%emt 0:00:13] aiming for Nc7+.} Ra5 {[%emt 0:02:32]} 12. d4 {[%emt 0:08:40]} Bb4 {[%emt 0:04:56]} 13. Bf4 {[%emt 0:02:45] Repels Nb8} O-O {[%emt 0:00:30][%cal Be8g8,Bg8f8,Bf8e7][%mdl 32]} 14. Bd6 {[%emt 0:06:51]} Bxd6 {[%emt 0:07:44]} 15. Nxd6 {[%emt 0:00:21]} Rb8 {[%emt 0:01:01]} 16. Rfc1 {[%emt 0:04:33]} Kf8 {[%emt 0:01:26]} 17. a4 {[%emt 0:09:24]} (17. b4 $16 Ra6 18. Ncb5) 17... Ne8 $14 {[%emt 0:02:27]} 18. Ndb5 {[%emt 0:00:59]} Ke7 {[%emt 0:01:02]} 19. f3 {[%emt 0:05:11]} Raa8 {[%emt 0:07:36]} 20. e4 {[%emt 0:01:56]} Ndf6 {[%emt 0:00:13]} 21. exd5 {[%emt 0:08:11]} Nxd5 {[%emt 0:02:48]} ({Better is} 21... exd5 22. g4 Rd8) 22. Nxd5+ $16 {[%emt 0:00:30]} exd5 {[%emt 0:00:08]} 23. Bh3 {[%emt 0:03:12] Repels Rc8} Bd3 {[%emt 0:01:12]} 24. Nc7 {[%emt 0:00:41]} Nxc7 {[%emt 0:00:29]} 25. Rxc7+ {[%emt 0:00:04]} Kf6 {[%emt 0:00:21]} 26. b3 {[%emt 0:01:32] Dodges Bc4} b5 {[%emt 0:07:29]} 27. Rd1 {[%emt 0:00:05]} Bg6 {[%emt 0:01:16]} ({Don't blunder} 27... Be2 $2 28. Rd2 $18) 28. axb5 {[%emt 0:00:17] White is much more active.} Ra3 {[%emt 0:00:09]} 29. Re1 {[%emt 0:03:38] Re5 is the strong threat.} Rxb3 {[%emt 0:00:31]} 30. Rd7 {[%emt 0:00:06] Re5 would now be deadly.} Bd3 $2 {[%emt 0:11:01][%mdl 8192] This costs Black the game.} (30... Kg5 $14) 31. Rd6+ $18 {[%emt 0:00:46] White is clearly winning.} (31. Rxd5 g6 $14) 31... Kg5 {[%emt 0:00:11] [#]} 32. Re5+ $1 {[%emt 0:02:35]} f5 {[%emt 0:00:10] [#]} 33. Bxf5 $1 {[%emt 0:01:02][%cal Rf5d3][%mdl 512]} Rb1+ {[%emt 0:01:14]} 34. Kf2 {[%emt 0:00:09][%cal Rf5d3]} Rb2+ {[%emt 0:00:24]} 35. Ke3 {[%emt 0:01:03][%cal Rf5d3]} Re2+ {[%emt 0:00:31]} 36. Kxd3 {[%emt 0:00:05][%csl Gd3,Ge5,Gf3][%cal Rf5e4]} Rxe5 {[%emt 0:00:07]} 37. Bg4 {[%emt 0:00:59] Weighted Error Value: White=0.12 (very precise) /Black=0.19 (very precise) .  Loses game:     	---       	Black=1      Mistake:       	White=1     	Black=2      Inaccurate:     	White=4     	Black=4      OK:         	White=7     	Black=6      Best:        	White=2     	Black=2} 1-0

[Event "37th Belgrade Trophy 2024"]
[Site "Belgrade"]
[Date "2024.11.27"]
[Round "5.8"]
[White "Bjelanovic, Mile"]
[Black "Ivanovic, Marko"]
[Result "1-0"]
[ECO "C77"]
[WhiteElo "2041"]
[BlackElo "2297"]
[Annotator "RC"]
[PlyCount "99"]
[EventDate "2024.11.23"]
[EventCountry "SRB"]
[SourceTitle "playchess.com"]
[Source "ChessBase"]
[SourceQuality "1"]
[TimeControl "40/5400+30:900+30"]

1. e4 {[%emt 0:00:04]} e5 {[%emt 0:11:14]} 2. Nf3 {[%emt 0:00:33]} Nc6 {[%emt 0:00:09]} 3. Bb5 {[%emt 0:00:38]} g6 {[%emt 0:00:59]} 4. O-O {[%emt 0:00:57]} Bg7 {[%emt 0:00:04]} 5. c3 {[%emt 0:01:05]} a6 {[%emt 0:00:08]} 6. Ba4 {[%emt 0:00:17]} d6 {[%emt 0:00:07]} 7. h3 {[%emt 0:00:59]} Nf6 {[%emt 0:00:07]} 8. Re1 {[%emt 0:00:39]} O-O {[%emt 0:00:09]} 9. d3 {[%emt 0:13:22]} Bd7 {[%emt 0:02:41]} 10. Nbd2 {[%emt 0:03:38]} h6 {[%emt 0:01:18]} 11. Nf1 {[%emt 0:00:49]} Re8 {[%emt 0:03:49]} 12. Ng3 {[%emt 0:01:06]} Qe7 {[%emt 0:00:10]} 13. Be3 {[%emt 0:05:21]} b5 {[%emt 0:02:02]} 14. Bc2 {[%emt 0:01:03]} Na5 {[%emt 0:00:22]} 15. b4 {[%emt 0:03:15]} Nb7 {[%emt 0:00:56]} 16. a4 {[%emt 0:00:53]} c5 {[%emt 0:00:28]} 17. axb5 {[%emt 0:02:15]} axb5 {[%emt 0:00:11]} 18. Qd2 {[%emt 0:00:54]} Kh7 {[%emt 0:00:05]} 19. Bb3 {[%emt 0:03:47]} Bc6 {[%emt 0:01:03]} 20. Qb2 {[%emt 0:08:56]} cxb4 {[%emt 0:06:38]} 21. cxb4 {[%emt 0:00:12]} d5 {[%emt 0:00:02]} 22. Bc2 {[%emt 0:05:49]} Rxa1 {[%emt 0:08:09]} 23. Rxa1 {[%emt 0:00:23]} dxe4 {[%emt 0:00:06]} 24. dxe4 {[%emt 0:00:28]} Bf8 {[%emt 0:00:40]} 25. Ra6 {[%emt 0:02:01]} Bd7 {[%emt 0:16:17]} 26. Bd3 {[%emt 0:05:26]} Bg7 {[%emt 0:18:08]} 27. Rb6 {[%emt 0:04:13]} Bc8 {[%emt 0:00:54]} 28. Bxb5 {[%emt 0:02:06]} Nd7 {[%emt 0:00:29]} 29. Rc6 {[%emt 0:07:35]} Nd6 {[%emt 0:07:10]} 30. Ba4 {[%emt 0:05:37]} Rd8 {[%emt 0:01:05]} 31. Rc7 {[%emt 0:02:41]} Qe6 {[%emt 0:03:45]} 32. Bb3 {[%emt 0:01:04]} Qf6 {[%emt 0:00:11]} 33. Bd5 {[%emt 0:00:35]} Nb8 {[%emt 0:05:58]} 34. Bc5 {[%emt 0:03:48]} Bd7 {[%emt 0:01:31]} 35. Ra7 {[%emt 0:10:04]} Be8 {[%emt 0:02:26]} 36. h4 {[%emt 0:01:31]} Nc8 {[%emt 0:04:31]} 37. Rb7 {[%emt 0:01:07]} Nd7 {[%emt 0:00:05]} 38. h5 {[%emt 0:01:12]} Ncb6 {[%emt 0:01:01]} 39. hxg6+ {[%emt 0:00:46]} fxg6 {[%emt 0:00:08]} 40. Ba2 {[%emt 0:01:53]} Na4 {[%emt 0:03:28]} 41. Qb3 {[%emt 0:15:26]} h5 {[%emt 0:15:40]} 42. Be3 {[%emt 0:00:52]} Qf8 {[%emt 0:01:34]} 43. Ng5+ {[%emt 0:00:58]} Kh8 {[%emt 0:00:01]} 44. Qxa4 {[%emt 0:00:00]} Nc5 {[%emt 0:00:00]} 45. Bxc5 {[%emt 0:00:00]} Qf6 {[%emt 0:00:00]} 46. Qa7 {[%emt 0:00:00]} Rd1+ {[%emt 0:00:00]} 47. Nf1 {[%emt 0:00:00]} Qxg5 {[%emt 0:00:00]} 48. Be3 {[%emt 0:00:00]} Qd8 {[%emt 0:00:00]} 49. Bc4 {[%emt 0:00:00]} Qf6 {[%emt 0:00:00]} 50. Rb8 {[%emt 0:00:00]} 1-0